bitfinex/quotes_BTCUSD_20241103
["timestamp","ask_amount","ask_price","bid_price","bid_amount"]
[1730662849865,0.12954019,68719.0,68718.0,0.03981663]
[1730662850090,0.12954019,68719.0,68718.0,0.00881663]
[1730662850524,0.26050819,68719.0,68718.0,0.018]
[1730662850747,0.26050819,68719.0,68718.0,0.02681797]
[1730662851401,0.26050819,68719.0,68718.0,0.018]
[1730662851885,0.253973,68716.0,68715.0,0.001638]
[1730662852958,0.0762,68706.0,68705.0,0.21835809]
[1730662853232,0.207192,68706.0,68705.0,0.21835809]
[1730662853679,0.207192,68706.0,68697.0,0.22335809]
[1730662853680,0.261989,68705.0,68697.0,0.22335809]
[1730662853912,0.0762,68704.0,68699.0,0.14579704]
[1730662854127,0.0762,68704.0,68703.0,0.005]
[1730662855044,0.131,68702.0,68699.0,0.15079704]
[1730662855290,0.131002,68701.0,68699.0,0.005]
[1730662855547,0.131002,68701.0,68698.0,0.21999609]
[1730662855548,0.123,68700.0,68698.0,0.001638]
[1730662855777,0.207206,68699.0,68698.0,0.001638]
[1730662855992,0.254006,68699.0,68698.0,0.001638]
[1730662856241,0.33615564,68699.0,68698.0,0.001638]
[1730662856695,0.34115564,68699.0,68698.0,0.001638]
[1730662857168,0.34115564,68699.0,68693.0,0.001638]
[1730662857169,0.08714964,68699.0,68693.0,0.001638]
[1730662857391,0.131013,68695.0,68693.0,0.001638]
[1730662857627,0.254013,68695.0,68693.0,0.001638]
[1730662857840,0.259013,68695.0,68693.0,0.001638]
[1730662858309,0.04346957,68712.0,68681.0,0.21835809]
[1730662858310,0.123,68688.0,68681.0,0.21835809]
[1730662858523,0.254038,68682.0,68681.0,0.21835809]
[1730662858751,0.254038,68682.0,68671.0,0.005]
[1730662858752,0.123,68682.0,68671.0,0.005]
[1730662858964,0.002,68694.0,68671.0,0.21835809]
[1730662858965,0.005,68676.0,68671.0,0.21835809]
[1730662859178,0.002,68683.0,68659.0,0.006638]
[1730662859179,0.131069,68666.0,68659.0,0.006638]
[1730662859426,0.177869,68666.0,68659.0,0.006638]
[1730662859674,0.254069,68666.0,68659.0,0.006638]
[1730662859922,0.3061888,68666.0,68659.0,0.001638]
[1730662860137,0.3061888,68666.0,68659.0,0.006638]
[1730662860138,0.254069,68666.0,68659.0,0.006638]
[1730662860384,0.254069,68666.0,68665.0,0.27909989]
[1730662860385,0.123,68666.0,68665.0,0.27909989]
[1730662860563,0.123,68666.0,68665.0,0.28409989]
[1730662861337,0.123,68666.0,68665.0,0.011832]
[1730662861338,0.259069,68666.0,68665.0,0.011832]
[1730662861555,0.35102009,68666.0,68665.0,0.011832]
[1730662862297,0.254069,68666.0,68665.0,0.017832]
[1730662862527,0.257069,68666.0,68665.0,0.017832]
[1730662862743,0.261069,68666.0,68665.0,0.017832]
[1730662862962,0.257069,68666.0,68665.0,0.011832]
[1730662864347,0.25684221,68666.0,68665.0,0.011832]
[1730662864578,0.36128674,68666.0,68665.0,0.011832]
[1730662865259,0.36628674,68666.0,68665.0,0.011832]
[1730662865474,0.36828674,68666.0,68665.0,0.011832]
[1730662865722,0.36628674,68666.0,68665.0,0.011832]
[1730662865961,0.36828674,68666.0,68665.0,0.011832]
[1730662866419,0.36628674,68666.0,68665.0,0.011832]
[1730662866664,0.26084221,68666.0,68665.0,0.011832]
[1730662867066,0.12977321,68666.0,68665.0,0.011832]
[1730662867528,0.12977321,68666.0,68665.0,0.0180742]
[1730662867766,0.26084221,68666.0,68665.0,0.0180742]
[1730662867998,0.26084221,68666.0,68665.0,0.011832]
[1730662868244,0.12577321,68666.0,68665.0,0.0180742]
[1730662868664,0.12577321,68666.0,68665.0,0.1511452]
[1730662868876,0.0762,68666.0,68665.0,0.1511452]
[1730662869318,0.0784,68679.0,68665.0,0.31006813]
[1730662869554,0.21835809,68677.0,68676.0,0.13105]
[1730662870023,0.048,68682.0,68676.0,0.00747288]
[1730662870253,0.048,68682.0,68678.0,0.131045]
[1730662870478,0.0784,68686.0,68683.0,0.131034]
[1730662870689,0.0784,68686.0,68684.0,0.131033]
[1730662870921,0.0784,68686.0,68684.0,0.00746572]
[1730662871383,0.0784,68686.0,68679.0,0.14579704]
[1730662871614,0.0784,68686.0,68685.0,0.00622069]
[1730662871615,0.214431,68686.0,68685.0,0.00622069]
[1730662871837,0.131042,68680.0,68673.0,0.005]
[1730662872061,0.131042,68680.0,68676.0,0.21835809]
[1730662872297,0.131046,68678.0,68673.0,0.005]
[1730662872716,0.131046,68678.0,68673.0,0.136055]
[1730662872927,0.0398119,68679.0,68673.0,0.136055]
[1730662873161,0.0398119,68679.0,68673.0,0.005]
[1730662873452,0.131046,68678.0,68673.0,0.136055]
[1730662873661,0.131046,68678.0,68676.0,0.004]
[1730662873879,0.131041,68681.0,68676.0,0.004]
[1730662874111,0.131043,68680.0,68675.0,0.131051]
[1730662874331,0.131043,68680.0,68673.0,0.005]
[1730662874332,0.005,68683.0,68673.0,0.26711]
[1730662874554,0.1012076,68683.0,68675.0,0.13105]
[1730662874764,0.13104,68681.0,68675.0,0.131051]
[1730662874977,0.005,68690.0,68675.0,0.14579704]
[1730662875202,0.262032,68694.0,68678.0,0.21835809]
[1730662875414,0.21835809,68692.0,68679.0,0.14579704]
[1730662875638,0.21835809,68692.0,68679.0,0.15079704]
[1730662875856,0.21835809,68692.0,68687.0,0.131028]
[1730662876070,0.34937809,68692.0,68687.0,0.131028]
[1730662876279,0.13102,68692.0,68687.0,0.131028]
[1730662876492,0.13102,68692.0,68686.0,0.13103]
[1730662876926,0.049,68691.0,68684.0,0.262068]
[1730662877357,0.048,68691.0,68687.0,0.131029]
[1730662877575,0.209418,68693.0,68688.0,0.131026]
[1730662877817,0.003,68691.0,68685.0,0.262065]
[1730662878039,0.001,68691.0,68688.0,0.131026]
[1730662878253,0.001,68691.0,68684.0,0.262069]
[1730662878487,0.134022,68691.0,68689.0,0.00738014]
[1730662878720,0.001,68691.0,68690.0,0.36415513]
[1730662878944,0.001,68691.0,68690.0,0.28419929]
[1730662879415,0.003,68691.0,68690.0,0.28419929]
[1730662879640,0.002,68691.0,68690.0,0.15317629]
[1730662879864,0.002,68691.0,68690.0,0.00737925]
[1730662879865,0.1473224,68691.0,68690.0,0.00737925]
[1730662880096,0.134021,68691.0,68690.0,0.00737925]
[1730662880304,0.134021,68691.0,68683.0,0.131035]
[1730662880305,0.262048,68690.0,68682.0,0.136037]
[1730662880531,0.262048,68690.0,68683.0,0.21835809]
[1730662880751,0.131029,68687.0,68683.0,0.22755869]
[1730662880959,0.02133469,68687.0,68683.0,0.22755869]
[1730662881189,0.002,68691.0,68683.0,0.22755869]
[1730662881190,0.131026,68689.0,68683.0,0.0092006]
[1730662881405,0.131026,68689.0,68683.0,0.1402356]
[1730662881824,0.0799,68688.0,68683.0,0.1402356]
[1730662882064,0.310012,68700.0,68686.0,0.35438909]
[1730662882065,0.001,68687.0,68686.0,0.35438909]
[1730662882304,0.048,68700.0,68694.0,0.131015]
[1730662882305,0.21835809,68698.0,68694.0,0.131015]
[1730662882518,0.21835809,68698.0,68686.0,0.15815483]
[1730662882726,0.02065033,68697.0,68695.0,0.00734974]
[1730662882951,0.65503,68699.0,68689.0,0.131024]
[1730662883176,0.13101,68697.0,68696.0,0.00734884]
[1730662883420,0.393019,68699.0,68696.0,0.00734884]
[1730662883662,0.131008,68698.0,68692.0,0.131018]
[1730662883880,0.38991,68700.0,68693.0,0.131016]
[1730662884087,0.002,68697.0,68693.0,0.13837031]
[1730662885007,0.002,68697.0,68693.0,0.00735431]
[1730662885245,0.131008,68698.0,68693.0,0.00735431]
[1730662885460,0.131008,68698.0,68693.0,0.00935431]
[1730662885699,0.392961,68709.0,68701.0,0.131001]
[1730662885918,0.0513,68710.0,68694.0,0.36415513]
[1730662885919,0.0799,68706.0,68699.0,0.262009]
[1730662886140,0.0799,68706.0,68702.0,0.13833493]
[1730662886401,0.0799,68706.0,68703.0,0.00732135]
[1730662886633,0.0799,68706.0,68700.0,0.131002]
[1730662886864,0.130996,68705.0,68704.0,0.00732046]
[1730662887112,0.130996,68705.0,68698.0,0.131008]
[1730662887339,0.130996,68704.0,68698.0,0.131008]
[1730662887602,0.130996,68704.0,68699.0,0.13933093]
[1730662887832,0.130996,68704.0,68700.0,0.001]
[1730662888052,0.130996,68704.0,68700.0,0.00732403]
[1730662888303,0.0513,68710.0,68704.0,0.002]
[1730662888304,0.0463,68710.0,68704.0,0.002]
[1730662888548,0.177286,68710.0,68704.0,0.002]
[1730662888770,0.0799,68712.0,68706.0,0.21835809]
[1730662888981,0.130973,68717.0,68706.0,0.14579704]
[1730662889195,0.130973,68717.0,68707.0,0.40025068]
[1730662889431,0.130973,68717.0,68711.0,0.130982]
[1730662889650,0.341842,68718.0,68708.0,0.00727679]
[1730662889916,0.341842,68718.0,68712.0,0.00724681]
[1730662890151,0.130973,68717.0,68711.0,0.130983]
[1730662890406,0.341842,68718.0,68713.0,0.00724592]
[1730662890638,0.130973,68716.0,68712.0,0.00724681]
[1730662890857,0.130975,68715.0,68711.0,0.001]
[1730662891087,0.130975,68715.0,68713.0,0.00724592]
[1730662891305,0.130975,68715.0,68712.0,0.01005851]
[1730662891534,0.130975,68715.0,68714.0,0.00724502]
[1730662891743,0.261943,68717.0,68713.0,0.00903551]
[1730662891744,0.008,68716.0,68713.0,0.00903551]
[1730662891951,0.130976,68715.0,68714.0,0.0090344]
[1730662892380,0.130977,68714.0,68713.0,0.001]
[1730662892811,0.130977,68714.0,68713.0,0.002]
[1730662893479,0.130977,68714.0,68713.0,0.01003551]
[1730662893729,0.130977,68714.0,68697.0,0.262016]
[1730662893730,0.261966,68711.0,68703.0,0.21835809]
[1730662893979,0.130989,68708.0,68703.0,0.21835809]
[1730662894222,0.130991,68707.0,68703.0,0.21835809]
[1730662894457,0.0392953,68708.0,68699.0,0.005]
[1730662894693,0.261969,68711.0,68698.0,0.005]
[1730662894909,0.261969,68711.0,68698.0,0.15079704]
[1730662894910,0.130997,68704.0,68698.0,0.15079704]
[1730662895365,0.130994,68706.0,68699.0,0.131005]
[1730662895583,0.130996,68705.0,68699.0,0.131005]
[1730662896263,0.261974,68709.0,68698.0,0.15079704]
[1730662896510,0.130994,68705.0,68699.0,0.131005]
[1730662896740,0.130999,68703.0,68698.0,0.005]
[1730662896969,0.206998,68704.0,68698.0,0.005]
[1730662897202,0.130999,68703.0,68698.0,0.136008]
[1730662897418,0.206997,68704.0,68699.0,0.002]
[1730662897791,0.206997,68704.0,68698.0,0.136008]
[1730662898005,0.206997,68704.0,68698.0,0.141008]
[1730662898206,0.076,68704.0,68699.0,0.005]
[1730662898403,0.130991,68707.0,68700.0,0.131002]
[1730662898607,0.130991,68707.0,68699.0,0.005]
[1730662898608,0.130991,68707.0,68701.0,0.131001]
[1730662898927,0.130992,68707.0,68700.0,0.131003]
[1730662899155,0.00082,68708.0,68707.0,0.130991]
[1730662900816,0.00182,68708.0,68707.0,0.137991]
[1730662901033,0.00182,68708.0,68707.0,0.130991]
[1730662901256,0.00082,68708.0,68707.0,0.130991]
[1730662901484,0.00182,68708.0,68707.0,0.139991]
[1730662901709,0.00182,68708.0,68707.0,0.137991]
[1730662902557,0.00182,68708.0,68707.0,0.007]
[1730662902967,0.00082,68708.0,68703.0,0.135998]
[1730662903221,0.00282,68708.0,68707.0,0.022]
[1730662903431,0.172186,68708.0,68707.0,0.011]
[1730662903655,0.172186,68708.0,68703.0,0.005]
[1730662903656,0.00182,68708.0,68703.0,0.005]
[1730662903880,0.130992,68707.0,68703.0,0.005]
[1730662904112,0.130993,68706.0,68703.0,0.005]
[1730662904950,0.130994,68705.0,68703.0,0.008]
[1730662905168,0.130994,68705.0,68703.0,0.016]
[1730662905370,0.262982,68707.0,68703.0,0.016]
[1730662905371,0.001,68707.0,68703.0,0.011]
[1730662905607,0.206996,68704.0,68703.0,0.011]
[1730662906024,0.206996,68704.0,68703.0,0.008]
[1730662906455,0.131,68702.0,68698.0,0.005]
[1730662907319,0.131001,68702.0,68698.0,0.005]
[1730662907547,0.131003,68701.0,68697.0,0.005]
[1730662907787,0.131003,68701.0,68698.0,0.012]
[1730662908002,0.131003,68701.0,68698.0,0.018]
[1730662908450,0.002,68702.0,68698.0,0.018]
[1730662908663,0.133001,68702.0,68699.0,0.00903011]
[1730662909108,0.131002,68701.0,68699.0,0.00903011]
[1730662909997,0.132002,68701.0,68699.0,0.00903011]
[1730662910238,0.131004,68700.0,68699.0,0.01503011]
[1730662910463,0.131004,68700.0,68699.0,0.013]
[1730662910704,0.131004,68700.0,68699.0,0.007]
[1730662910910,0.136004,68700.0,68699.0,0.007]
[1730662911118,0.2099049,68700.0,68699.0,0.007]
[1730662911557,0.2099049,68700.0,68699.0,0.014]
[1730662911765,0.2099049,68700.0,68699.0,0.007]
[1730662912399,0.57990194,68700.0,68699.0,0.007]
[1730662913236,0.57990194,68700.0,68699.0,0.008]
[1730662913237,0.58090194,68700.0,68699.0,0.008]
[1730662913446,0.131034,68684.0,68683.0,0.21835809]
[1730662913683,0.2041382,68684.0,68683.0,0.21835809]
[1730662913906,0.131046,68679.0,68676.0,0.21835809]
[1730662914381,0.131046,68678.0,68672.0,0.136057]
[1730662914607,0.131044,68679.0,68676.0,0.005]
[1730662915012,0.131044,68679.0,68675.0,0.005]
[1730662915223,0.131044,68679.0,68673.0,0.28185104]
[1730662915408,0.131044,68679.0,68673.0,0.27685104]
[1730662915891,0.0393124,68678.0,68673.0,0.14579704]
[1730662916094,0.131045,68679.0,68673.0,0.27685104]
[1730662916512,0.001,68678.0,68676.0,0.009]
[1730662916745,0.131048,68677.0,68676.0,0.009]
[1730662916949,0.001,68679.0,68676.0,0.009]
[1730662917156,0.132046,68678.0,68673.0,0.15879704]
[1730662917368,0.131046,68678.0,68673.0,0.012]
[1730662917605,0.0273077,68679.0,68678.0,0.136046]
[1730662917606,0.001,68679.0,68678.0,0.136046]
[1730662917827,0.001,68679.0,68678.0,0.005]
[1730662918039,0.131034,68685.0,68678.0,0.136045]
[1730662918343,0.131034,68685.0,68680.0,0.005]
[1730662918668,0.131031,68686.0,68680.0,0.005]
[1730662918892,0.0759,68689.0,68680.0,0.005]
[1730662919118,0.206926,68689.0,68682.0,0.131037]
[1730662919351,0.077731,68688.0,68680.0,0.005]
[1730662919593,0.131033,68685.0,68680.0,0.005]
[1730662920013,0.131033,68685.0,68678.0,0.140046]
[1730662920014,0.262062,68686.0,68679.0,0.005]
[1730662920272,0.13104,68681.0,68680.0,0.005]
[1730662920498,0.13104,68681.0,68674.0,0.27685004]
[1730662920499,0.262076,68683.0,68674.0,0.14579704]
[1730662920757,0.262056,68688.0,68680.0,0.001]
[1730662920758,0.13104,68681.0,68680.0,0.001]
[1730662920981,0.13104,68681.0,68680.0,0.008]
[1730662921210,0.262062,68686.0,68680.0,0.005]
[1730662921416,0.131036,68684.0,68680.0,0.013]
[1730662921629,0.001,68681.0,68680.0,0.013]
[1730662921838,0.001,68681.0,68680.0,0.144042]
[1730662922486,0.001,68681.0,68680.0,0.151042]
[1730662922487,0.002,68681.0,68680.0,0.151042]
[1730662922715,0.001,68681.0,68680.0,0.138042]
[1730662922930,0.001,68681.0,68680.0,0.143042]
[1730662923373,0.001,68681.0,68680.0,0.145042]
[1730662923582,0.001,68681.0,68680.0,0.15573842]
[1730662923827,0.001,68681.0,68680.0,0.29953546]
[1730662924038,0.001,68681.0,68680.0,0.29953545]
[1730662924252,0.001,68681.0,68680.0,0.30753545]
[1730662924253,0.002,68681.0,68680.0,0.30753545]
[1730662924978,0.002,68681.0,68680.0,0.29686135]
[1730662924979,0.001,68681.0,68680.0,0.29686135]
[1730662925199,0.001,68681.0,68680.0,0.29953545]
[1730662925441,0.21835809,68697.0,68684.0,0.005]
[1730662925662,0.21835809,68690.0,68687.0,0.262055]
[1730662925880,0.21835809,68697.0,68689.0,0.131025]
[1730662926113,0.131014,68695.0,68688.0,0.01068449]
[1730662926336,0.15085055,68695.0,68690.0,0.0106815]
[1730662926576,0.131023,68690.0,68689.0,0.010683]
[1730662926801,0.262031,68694.0,68691.0,0.01068001]
[1730662926802,0.131015,68694.0,68691.0,0.01068001]
[1730662927014,0.131015,68694.0,68687.0,0.131028]
[1730662927266,0.131015,68694.0,68692.0,0.01067852]
[1730662927479,0.262008,68700.0,68691.0,0.005]
[1730662927705,0.08961909,68706.0,68693.0,0.01067703]
[1730662927706,0.131016,68694.0,68693.0,0.01067703]
[1730662927920,0.131016,68694.0,68693.0,0.005]
[1730662928133,0.261999,68703.0,68693.0,0.005]
[1730662928380,0.393033,68697.0,68696.0,0.005]
[1730662928609,0.131013,68695.0,68694.0,0.01067554]
[1730662928822,0.13101,68697.0,68696.0,0.005]
[1730662929031,0.13101,68697.0,68696.0,0.01567256]
[1730662929239,0.13101,68697.0,68696.0,0.005]
[1730662929677,0.262008,68700.0,68691.0,0.005]
[1730662929877,0.131018,68693.0,68688.0,0.005]
[1730662930387,0.131018,68693.0,68689.0,0.005]
[1730662930633,0.262012,68699.0,68692.0,0.005]
[1730662930853,0.13101,68697.0,68696.0,0.002]
[1730662931277,0.13101,68697.0,68696.0,0.005]
[1730662931953,0.262012,68699.0,68696.0,0.005]
[1730662932182,0.13101,68697.0,68696.0,0.005]
[1730662932454,0.13101,68697.0,68696.0,0.006]
[1730662932683,0.13101,68697.0,68696.0,0.005]
[1730662933093,0.13101,68697.0,68696.0,0.007]
[1730662933498,0.13101,68697.0,68696.0,0.002]
[1730662933867,0.08582,68701.0,68689.0,0.005]
[1730662934247,0.131021,68692.0,68688.0,0.005]
[1730662934490,0.005,68693.0,68681.0,0.005]
[1730662934706,0.131031,68686.0,68684.0,0.22335809]
[1730662935132,0.131026,68689.0,68684.0,0.005]
[1730662935332,0.131022,68691.0,68684.0,0.136033]
[1730662935462,0.131022,68691.0,68685.0,0.01065995]
[1730662935463,0.131026,68689.0,68685.0,0.01065995]
[1730662935678,0.262039,68692.0,68685.0,0.01065995]
[1730662936036,0.262046,68690.0,68684.0,0.005]
[1730662936242,0.131029,68687.0,68686.0,0.01065846]
[1730662936470,0.131029,68687.0,68684.0,0.005]
[1730662936471,0.131019,68692.0,68685.0,0.21835809]
[1730662936687,0.262028,68695.0,68686.0,0.01065846]
[1730662936894,0.131018,68693.0,68687.0,0.131029]
[1730662937102,0.262031,68694.0,68687.0,0.00806386]
[1730662937564,0.13102,68692.0,68687.0,0.00806386]
[1730662937789,0.17427375,68694.0,68687.0,0.13909086]
[1730662938009,0.131018,68693.0,68687.0,0.131027]
[1730662938145,0.131018,68693.0,68688.0,0.00806274]
[1730662938367,0.131019,68692.0,68688.0,0.01075032]
[1730662938598,0.262031,68694.0,68688.0,0.14177632]
[1730662938599,0.131016,68694.0,68688.0,0.14177632]
[1730662939157,0.131016,68694.0,68688.0,0.13908762]
[1730662939378,0.262027,68696.0,68688.0,0.00806162]
[1730662939605,0.262027,68695.0,68688.0,0.14508662]
[1730662939828,0.131019,68693.0,68688.0,0.006]
[1730662940045,0.131019,68693.0,68689.0,0.01074883]
[1730662940260,0.262031,68694.0,68689.0,0.01074883]
[1730662940480,0.13102,68692.0,68689.0,0.00805913]
[1730662940701,0.13102,68692.0,68689.0,0.0107455]
[1730662941354,0.131021,68691.0,68689.0,0.00805761]
[1730662941561,0.131021,68691.0,68689.0,0.01305761]
[1730662942191,0.131021,68691.0,68689.0,0.01574348]
[1730662942445,0.131021,68691.0,68689.0,0.01874348]
[1730662942677,0.131021,68691.0,68689.0,0.01074348]
[1730662942900,0.131021,68691.0,68689.0,0.00668587]
[1730662943115,0.131021,68691.0,68690.0,0.01074619]
[1730662943553,0.131018,68693.0,68690.0,0.01074619]
[1730662943806,0.00082,68697.0,68690.0,0.01074619]
[1730662944023,0.131014,68695.0,68689.0,0.005]
[1730662944260,0.131019,68692.0,68691.0,0.00805852]
[1730662944489,0.131019,68692.0,68689.0,0.005]
[1730662944713,0.001,68691.0,68690.0,0.006]
[1730662945136,0.132021,68691.0,68690.0,0.006]
[1730662945347,0.132021,68691.0,68690.0,0.007]
[1730662945533,0.132021,68691.0,68690.0,0.006]
[1730662946045,0.1976286,68691.0,68690.0,0.013]
[1730662946274,0.132021,68691.0,68690.0,0.013]
[1730662946525,0.131021,68691.0,68690.0,0.007]
[1730662947210,0.131841,68691.0,68690.0,0.007]
[1730662947440,0.1974317,68691.0,68690.0,0.007]
[1730662947677,0.2751317,68691.0,68690.0,0.014]
[1730662948185,0.3227317,68691.0,68690.0,0.014]
[1730662948417,0.36821779,68691.0,68690.0,0.014]
[1730662948900,0.3227317,68691.0,68690.0,0.014]
[1730662949131,0.36821723,68691.0,68690.0,0.014]
[1730662949360,0.36821723,68691.0,68690.0,0.007]
[1730662949597,0.262063,68686.0,68678.0,0.136045]
[1730662949832,0.131037,68683.0,68678.0,0.136045]
[1730662950062,0.131037,68683.0,68679.0,0.00808155]
[1730662950601,0.131034,68685.0,68684.0,0.005]
[1730662951306,0.131032,68685.0,68684.0,0.005]
[1730662951535,0.262054,68688.0,68684.0,0.005]
[1730662951770,0.131032,68685.0,68684.0,0.005]
[1730662952222,0.131032,68685.0,68684.0,0.01]
[1730662952698,0.131032,68685.0,68684.0,0.005]
[1730662953381,0.262062,68686.0,68680.0,0.005]
[1730662953609,0.131041,68681.0,68677.0,0.005]
[1730662954033,0.262077,68682.0,68677.0,0.005]
[1730662954470,0.0525145,68681.0,68677.0,0.14579704]
[1730662954692,0.131043,68680.0,68677.0,0.15079704]
[1730662954901,0.0535145,68681.0,68677.0,0.15979704]
[1730662955128,0.1845555,68681.0,68677.0,0.15979704]
[1730662955403,0.02093097,68680.0,68677.0,0.018]
[1730662955613,0.131045,68679.0,68677.0,0.009]
[1730662955830,0.131045,68679.0,68677.0,0.019]
[1730662956043,0.02093097,68680.0,68677.0,0.019]
[1730662956259,0.15197397,68680.0,68677.0,0.015]
[1730662956465,0.001,68682.0,68679.0,0.005]
[1730662956719,0.131041,68681.0,68680.0,0.005]
[1730662956936,0.131038,68682.0,68681.0,0.005]
[1730662957143,0.30569367,68685.0,68681.0,0.005]
[1730662957356,0.262069,68684.0,68681.0,0.005]
[1730662957569,0.131038,68682.0,68681.0,0.005]
[1730662957790,0.393116,68682.0,68681.0,0.005]
[1730662958017,0.393116,68682.0,68681.0,0.00473219]
[1730662958419,0.131041,68681.0,68680.0,0.00473219]
[1730662958648,0.262078,68682.0,68680.0,0.00473219]
[1730662958894,0.13104,68681.0,68680.0,0.00473219]
[1730662959596,0.001,68682.0,68681.0,0.13577219]
[1730662959820,0.04444567,68685.0,68681.0,0.13577219]
[1730662959821,0.00082,68685.0,68681.0,0.15052923]
[1730662960047,0.00082,68685.0,68683.0,0.262072]
[1730662960282,0.00082,68685.0,68684.0,0.131034]
[1730662961877,0.00082,68685.0,68684.0,0.136034]
[1730662962770,0.00182,68685.0,68684.0,0.136034]
[1730662963259,0.00082,68685.0,68684.0,0.136034]
[1730662963466,0.00182,68685.0,68684.0,0.142034]
[1730662963675,0.00182,68685.0,68684.0,0.14676619]
[1730662966790,0.00182,68685.0,68684.0,0.29256323]
[1730662968305,0.00182,68685.0,68684.0,0.52876012]
[1730662968533,0.00182,68685.0,68684.0,0.53455698]
[1730662968749,0.00082,68685.0,68684.0,0.52855698]
[1730662968973,0.00082,68685.0,68684.0,0.53355698]
[1730662969193,0.00082,68685.0,68684.0,0.53455698]
[1730662969747,0.00082,68685.0,68684.0,0.39236009]
[1730662970052,0.00182,68685.0,68684.0,0.40536009]
[1730662970703,0.00182,68685.0,68684.0,0.41836009]
[1730662974047,0.00182,68685.0,68684.0,0.3136279]
[1730662974276,0.00182,68685.0,68684.0,0.04152905]
[1730662975426,0.00182,68685.0,68684.0,0.17256305]
[1730662976963,0.00182,68685.0,68684.0,0.04152905]
[1730662977429,0.00182,68685.0,68684.0,0.17256305]
[1730662979436,0.00182,68685.0,68684.0,0.04152905]
[1730662979659,0.00182,68685.0,68684.0,0.17256305]
[1730662979851,0.0151044,68685.0,68684.0,0.04152905]
[1730662980683,0.00182,68685.0,68684.0,0.17256305]
[1730662985547,0.00182,68685.0,68684.0,0.31836009]
[1730662993320,0.00182,68685.0,68684.0,0.17256305]
[1730662995228,0.08342,68685.0,68684.0,0.17256305]
[1730663001788,0.08342,68685.0,68684.0,0.04152905]
[1730663002434,0.08342,68685.0,68684.0,0.17256305]
[1730663002659,0.08342,68685.0,68684.0,0.04152905]
[1730663002912,0.08342,68685.0,68684.0,0.17256305]
[1730663003574,0.08342,68685.0,68684.0,0.04152905]
[1730663003818,0.08342,68685.0,68684.0,0.17256305]
[1730663004055,0.096352,68685.0,68684.0,0.17256305]
[1730663004544,0.096352,68685.0,68684.0,0.03679686]
[1730663004792,0.096352,68685.0,68684.0,0.03073219]
[1730663005040,0.096352,68685.0,68684.0,0.026]
[1730663005261,0.096352,68685.0,68684.0,0.04148609]
[1730663006393,0.096352,68685.0,68684.0,0.0367539]
[1730663006602,0.096352,68685.0,68684.0,0.04148609]
[1730663006883,0.096352,68685.0,68684.0,0.0367539]
[1730663007529,0.096352,68685.0,68684.0,0.04148609]
[1730663008235,0.274584,68685.0,68684.0,0.0367539]
[1730663008463,0.31825464,68685.0,68684.0,0.0367539]
[1730663008683,0.34008996,68685.0,68684.0,0.026]
[1730663008926,0.274584,68685.0,68684.0,0.026]
[1730663009168,0.34009084,68685.0,68684.0,0.026]
[1730663009381,0.34509084,68685.0,68684.0,0.026]
[1730663009823,0.34509084,68685.0,68681.0,0.00164]
[1730663009824,0.00526781,68684.0,68681.0,0.00164]
[1730663010045,0.131038,68682.0,68681.0,0.00164]
[1730663010269,0.27967425,68682.0,68681.0,0.00164]
[1730663010731,0.410621,68685.0,68681.0,0.26372]
[1730663010732,0.04447413,68685.0,68681.0,0.26372]
[1730663010960,0.04447413,68685.0,68684.0,0.13576619]
[1730663010961,0.00082,68685.0,68684.0,0.13576619]
[1730663011407,0.00082,68685.0,68684.0,0.14658435]
[1730663013446,0.00082,68685.0,68684.0,0.16258435]
[1730663013863,0.00082,68685.0,68684.0,0.15858435]
[1730663014309,0.00182,68685.0,68684.0,0.15958435]
[1730663014816,0.00182,68685.0,68684.0,0.16958435]
[1730663016125,0.00182,68685.0,68684.0,0.15958435]
[1730663016513,0.00182,68685.0,68684.0,0.17158435]
[1730663026829,0.00182,68685.0,68684.0,0.31738139]
[1730663033619,0.00182,68685.0,68684.0,0.40487091]
[1730663034377,0.00182,68685.0,68684.0,0.82271852]
[1730663034621,0.00182,68685.0,68684.0,0.75456043]
[1730663034861,0.00182,68685.0,68684.0,0.78371043]
[1730663035356,0.00182,68685.0,68684.0,0.77171043]
[1730663035634,0.00182,68685.0,68684.0,0.76971043]
[1730663035890,0.00182,68685.0,68684.0,0.78571043]
[1730663036117,0.00082,68685.0,68684.0,0.75871043]
[1730663036330,0.00082,68685.0,68684.0,0.78671043]
[1730663036789,0.00082,68685.0,68684.0,0.77271043]
[1730663037565,0.00082,68685.0,68684.0,0.78671043]
[1730663040348,0.00082,68685.0,68684.0,0.78471043]
[1730663046557,0.00082,68685.0,68684.0,0.73561043]
[1730663046767,0.00082,68685.0,68684.0,0.65751043]
[1730663047009,0.00082,68685.0,68684.0,0.62836043]
[1730663052565,0.00082,68685.0,68684.0,0.50787091]
[1730663052939,0.00082,68685.0,68684.0,0.32038139]
[1730663053024,0.07602,68685.0,68684.0,0.32038139]
[1730663053244,0.07602,68685.0,68684.0,0.17458435]
[1730663053476,0.07602,68685.0,68684.0,0.03881816]
[1730663053696,0.07602,68685.0,68684.0,0.02955035]
[1730663053911,0.07602,68685.0,68684.0,0.16058435]
[1730663054759,0.07602,68685.0,68684.0,0.14658435]
[1730663054974,0.07602,68685.0,68684.0,0.17458435]
[1730663055177,0.07602,68685.0,68684.0,0.16058435]
[1730663055609,0.07602,68685.0,68684.0,0.15658435]
[1730663055807,0.07602,68685.0,68684.0,0.15758435]
[1730663056024,0.07602,68685.0,68684.0,0.16858435]
[1730663066002,0.07602,68685.0,68684.0,0.03755035]
[1730663066214,0.07602,68685.0,68684.0,0.16858435]